bitfinex/quotes_BTCUSD_20240727
["timestamp","ask_amount","ask_price","bid_price","bid_amount"]
[1722092270139,0.00816,69084.0,69083.0,0.7713048]
[1722092270535,0.00816,69084.0,69083.0,1.0608108]
[1722092270944,0.00816,69084.0,69083.0,0.7713048]
[1722092271475,0.00816,69084.0,69083.0,1.0608108]
[1722092271697,0.00816,69084.0,69083.0,0.7713048]
[1722092273310,0.03087786,69084.0,69083.0,0.7713048]
[1722092275305,0.03087786,69084.0,69083.0,0.4817988]
[1722092275699,0.17617786,69084.0,69083.0,0.03771081]
[1722092275889,0.15346,69084.0,69083.0,0.47196981]
[1722092277472,0.07026,69084.0,69083.0,0.47196981]
[1722092279109,0.09297843,69084.0,69083.0,0.76147581]
[1722092279279,0.00816,69084.0,69083.0,0.76147581]
[1722092281176,0.00816,69084.0,69083.0,1.05098181]
[1722092285426,0.00816,69084.0,69083.0,1.17127149]
[1722092286891,0.00816,69084.0,69083.0,1.23687149]
[1722092287292,0.03087819,69084.0,69083.0,1.23687149]
[1722092287700,0.00816,69084.0,69083.0,1.23687149]
[1722092288299,0.00816,69084.0,69083.0,1.23887149]
[1722092288586,0.00816,69084.0,69083.0,1.38913106]
[1722092288794,0.00816,69084.0,69083.0,1.67863706]
[1722092288999,0.00816,69084.0,69083.0,1.38913106]
[1722092289396,0.00816,69084.0,69083.0,1.55270642]
[1722092289596,0.00816,69084.0,69083.0,1.32153106]
[1722092290002,0.00816,69084.0,69083.0,1.55270441]
[1722092290203,0.00816,69084.0,69083.0,1.32353106]
[1722092290429,0.00816,69084.0,69083.0,1.87395093]
[1722092290803,0.00816,69084.0,69083.0,2.02429089]
[1722092291283,0.00816,69084.0,69083.0,2.0898668]
[1722092291488,0.00816,69084.0,69083.0,2.08986764]
[1722092291489,0.03087699,69084.0,69083.0,2.08986764]
[1722092291729,0.00816,69084.0,69083.0,1.93952684]
[1722092292085,0.00816,69084.0,69083.0,1.75911916]
[1722092292736,0.00816,69084.0,69083.0,1.93953432]
[1722092293005,0.00816,69085.0,69084.0,0.002]
[1722092293006,0.00329977,69085.0,69084.0,0.002]
[1722092293155,0.002,69089.0,69088.0,0.516727]
[1722092293356,0.002,69089.0,69088.0,1.43182697]
[1722092293603,0.002,69089.0,69088.0,2.04347316]
[1722092294004,0.002,69089.0,69088.0,2.23619482]
[1722092294307,0.002,69089.0,69088.0,2.41744112]
[1722092294449,0.002,69089.0,69088.0,2.52108405]
[1722092294658,0.0619,69107.0,69090.0,1.385146]
[1722092294876,0.0619,69107.0,69090.0,2.36893909]
[1722092295073,0.0619,69107.0,69090.0,2.36082812]
[1722092295389,0.14,69110.0,69098.0,1.01505]
[1722092295608,0.0619,69110.0,69098.0,1.76549077]
[1722092295786,0.0619,69110.0,69098.0,1.77510258]
[1722092296455,0.0619,69110.0,69098.0,1.65483218]
[1722092296612,0.0619,69110.0,69098.0,1.77508185]
[1722092297008,0.045,69113.0,69098.0,2.00988185]
[1722092297191,0.045,69113.0,69098.0,2.49451599]
[1722092297731,0.045,69113.0,69098.0,2.05227299]
[1722092298946,0.02470953,69099.0,69098.0,2.21907299]
[1722092299163,0.02470953,69099.0,69098.0,2.23307299]
[1722092299361,0.045,69113.0,69108.0,1.302309]
[1722092299520,0.045,69113.0,69108.0,1.65331824]
[1722092299728,0.045,69113.0,69108.0,1.66281836]
[1722092299929,0.045,69113.0,69108.0,1.72841836]
[1722092302169,0.045,69113.0,69108.0,1.74241836]
[1722092302579,0.045,69113.0,69108.0,1.75641836]
[1722092303104,0.045,69113.0,69108.0,1.97020692]
[1722092303739,0.045,69113.0,69108.0,1.36329606]
[1722092303913,0.045,69113.0,69108.0,1.32090492]
[1722092304471,0.045,69113.0,69108.0,1.59630692]
[1722092304681,0.045,69113.0,69108.0,1.92760692]
[1722092305101,0.045,69113.0,69108.0,1.92327483]
[1722092305302,0.045,69113.0,69108.0,1.98887483]
[1722092305586,0.045,69113.0,69108.0,2.0321337]
[1722092305757,0.045,69113.0,69108.0,2.00287483]
[1722092306014,0.045,69113.0,69108.0,1.98887483]
[1722092306449,0.045,69113.0,69108.0,2.04610954]
[1722092306669,0.045,69113.0,69108.0,2.03210954]
[1722092307010,0.045,69113.0,69108.0,2.0028624]
[1722092307432,0.045,69113.0,69108.0,2.04609935]
[1722092307854,0.045,69113.0,69108.0,2.0028624]
[1722092308168,0.045,69113.0,69108.0,2.06773344]
[1722092308415,0.045,69113.0,69108.0,2.1028624]
[1722092308585,0.045,69113.0,69108.0,2.0888624]
[1722092308828,0.045,69113.0,69108.0,2.16169603]
[1722092309251,0.02470592,69109.0,69108.0,2.16169603]
[1722092309449,0.02470592,69109.0,69108.0,2.17569603]
[1722092309647,0.01592904,69109.0,69108.0,2.46509422]
[1722092309853,1e-08,69109.0,69108.0,2.34249222]
[1722092310049,0.00816,69118.0,69117.0,0.282982]
[1722092310189,0.00816,69118.0,69117.0,1.46988426]
[1722092310395,0.00816,69118.0,69117.0,2.05798654]
[1722092310728,0.00816,69118.0,69117.0,2.10235434]
[1722092312729,0.00816,69118.0,69117.0,2.10234249]
[1722092313150,0.00816,69118.0,69117.0,2.11634249]
[1722092313645,0.00816,69118.0,69117.0,2.05797469]
[1722092313761,0.00816,69118.0,69117.0,2.07197469]
[1722092313964,0.00816,69118.0,69117.0,2.08308199]
[1722092314638,0.06946,69118.0,69117.0,1.49345162]
[1722092314764,0.06946,69118.0,69117.0,1.40661799]
[1722092315223,0.06946,69118.0,69117.0,1.11725399]
[1722092315423,0.06946,69118.0,69117.0,0.61749654]
[1722092315828,0.06946,69118.0,69117.0,0.90686054]
[1722092316249,0.06946,69118.0,69117.0,1.19622454]
[1722092316401,0.06946,69118.0,69117.0,0.90686054]
[1722092316605,0.06946,69118.0,69117.0,0.92086054]
[1722092316806,0.06946,69118.0,69117.0,0.89286054]
[1722092317224,0.06946,69118.0,69117.0,0.92086054]
[1722092318185,0.06946,69118.0,69117.0,0.90686054]
[1722092318374,0.06946,69118.0,69117.0,0.92086054]
[1722092319320,0.09216609,69118.0,69117.0,0.92086054]
[1722092319809,0.09216609,69118.0,69117.0,1.33045366]
[1722092322404,0.09216609,69118.0,69117.0,1.04108966]
[1722092322568,0.09216609,69118.0,69117.0,0.92086054]
[1722092322774,0.09216609,69118.0,69117.0,1.04108966]
[1722092323610,0.09216609,69118.0,69117.0,0.16742009]
[1722092323814,0.09216609,69118.0,69117.0,0.60146609]
[1722092324211,0.06946,69118.0,69117.0,0.60146609]
[1722092324473,0.06946,69118.0,69117.0,0.31210209]
[1722092324708,0.06946,69118.0,69117.0,0.16387297]
[1722092324709,0.15136,69118.0,69117.0,0.16387297]
[1722092324911,0.15136,69118.0,69117.0,0.45323697]
[1722092325088,0.15136,69118.0,69117.0,0.46723697]
[1722092325291,0.15136,69118.0,69117.0,0.58747506]
[1722092325809,0.15136,69118.0,69117.0,0.29811106]
[1722092325993,0.15136,69118.0,69117.0,0.2981103]
[1722092326571,0.15136,69118.0,69117.0,0.1394283]
[1722092326771,0.15136,69118.0,69117.0,0.17387297]
[1722092326772,0.15086,69118.0,69117.0,0.17387297]
[1722092327030,0.15086,69118.0,69117.0,0.18587297]
[1722092327566,0.15086,69118.0,69117.0,0.17387297]
[1722092327567,0.17356679,69118.0,69117.0,0.17387297]
[1722092327804,0.17356679,69118.0,69117.0,0.03037428]
[1722092327805,0.75228679,69118.0,69117.0,0.03037428]
[1722092327994,0.89696679,69118.0,69117.0,0.03937428]
[1722092328267,0.89696679,69118.0,69117.0,0.019]
[1722092328466,0.89696679,69118.0,69116.0,0.1]
[1722092328467,0.72341,69117.0,69116.0,0.1]
[1722092328671,0.86891,69117.0,69116.0,0.1]
[1722092331264,0.579546,69117.0,69116.0,0.1]
[1722092331418,0.86891,69117.0,69116.0,0.10989709]
[1722092331997,0.86891,69117.0,69116.0,0.12189709]
[1722092332232,0.89161841,69117.0,69116.0,0.12189709]
[1722092332597,0.86891,69117.0,69116.0,0.12189709]
[1722092332808,0.86891,69117.0,69116.0,0.11989709]
[1722092333210,0.579546,69117.0,69116.0,0.12589709]
[1722092333515,0.579546,69117.0,69116.0,0.13944287]
[1722092333951,0.579546,69117.0,69116.0,0.12589709]
[1722092334558,0.579546,69117.0,69116.0,0.11589709]
[1722092334943,0.579546,69117.0,69116.0,0.11989709]
[1722092335859,0.60225433,69117.0,69116.0,0.11989709]
[1722092336085,0.31289033,69117.0,69116.0,0.12082109]
[1722092336317,0.60225433,69117.0,69116.0,0.110924]
[1722092336529,0.89161833,69117.0,69116.0,0.110924]
[1722092337004,0.86891,69117.0,69116.0,0.110924]
[1722092337206,0.86891,69117.0,69116.0,0.12087656]
[1722092337415,0.86891,69117.0,69116.0,0.110924]
[1722092338279,0.86891,69117.0,69116.0,0.010924]
[1722092338512,1.158274,69117.0,69116.0,0.010924]
[1722092340491,1.1809825,69117.0,69116.0,0.010924]
[1722092341339,1.158274,69117.0,69116.0,0.006924]
[1722092341802,1.160274,69117.0,69116.0,0.006924]
[1722092342133,1.160274,69117.0,69116.0,0.000924]
[1722092342134,1.158274,69117.0,69116.0,0.000924]
[1722092342543,1.163274,69117.0,69116.0,0.002924]
[1722092343401,0.87391,69117.0,69116.0,0.002924]
[1722092343604,0.295182,69117.0,69116.0,0.002924]
[1722092343852,0.1505,69117.0,69116.0,0.002924]
[1722092344099,0.1505,69117.0,69116.0,0.04213385]
[1722092344249,0.1475,69117.0,69116.0,0.0311551]
[1722092344456,0.1505,69117.0,69116.0,0.04113385]
[1722092344755,0.0689,69117.0,69116.0,0.18581785]
[1722092344960,0.0659,69117.0,69116.0,0.04113385]
[1722092345193,0.0659,69117.0,69116.0,0.18581785]
[1722092345395,0.0669,69117.0,69116.0,0.76551628]
[1722092345557,0.0669,69117.0,69116.0,0.76455385]
[1722092345961,0.0669,69117.0,69116.0,1.05292185]
[1722092345962,0.003,69117.0,69116.0,1.05292185]
[1722092346180,0.001,69117.0,69116.0,1.05292185]
[1722092346376,0.003,69117.0,69116.0,1.05292185]
[1722092347721,0.002,69117.0,69116.0,1.05292185]
[1722092347911,0.02470689,69117.0,69116.0,1.05292185]
[1722092348117,0.02470689,69117.0,69116.0,1.05692185]
[1722092348318,0.02470689,69117.0,69116.0,1.17715734]
[1722092348743,0.02470689,69117.0,69116.0,0.76755385]
[1722092348944,0.02470689,69117.0,69116.0,0.77742782]
[1722092349176,0.02470689,69117.0,69116.0,0.77942782]
[1722092349564,0.002,69117.0,69116.0,0.77742782]
[1722092349937,0.002,69117.0,69116.0,1.18703142]
[1722092350230,0.00766,69118.0,69117.0,0.434046]
[1722092350443,0.00766,69118.0,69117.0,0.75908505]
[1722092350659,0.00766,69118.0,69117.0,0.76906218]
[1722092350861,0.00766,69118.0,69117.0,1.05842618]
[1722092351679,0.00766,69118.0,69117.0,1.07142618]
[1722092352186,0.00766,69118.0,69117.0,1.16352618]
[1722092352396,0.00766,69118.0,69117.0,1.3493518]
[1722092352569,0.00766,69118.0,69117.0,1.78897537]
[1722092352920,0.03036521,69118.0,69117.0,1.78897537]
[1722092353344,0.00766,69118.0,69117.0,1.78897537]
[1722092354945,0.00766,69118.0,69117.0,1.77797537]
[1722092355167,0.00766,69118.0,69117.0,1.79197537]
[1722092355627,0.00766,69118.0,69117.0,1.79196764]
[1722092356099,0.00766,69118.0,69117.0,1.50260364]
[1722092356582,0.00766,69118.0,69117.0,1.77896764]
[1722092357027,0.00766,69118.0,69117.0,1.79296764]
[1722092357764,0.06,69135.0,69134.0,0.723232]
[1722092357765,0.04782,69135.0,69134.0,0.723232]
[1722092357980,0.04782,69135.0,69134.0,0.7524631]
[1722092358211,0.04782,69135.0,69134.0,0.76233171]
[1722092358493,0.0821,69148.0,69134.0,0.33405928]
[1722092358732,0.00815,69154.0,69148.0,0.433851]
[1722092359005,0.0821,69153.0,69148.0,1.012319]
[1722092359214,0.0821,69153.0,69148.0,0.73291206]
[1722092359462,0.0821,69153.0,69148.0,1.05137716]
[1722092359936,0.02469803,69149.0,69148.0,1.05137716]
[1722092360882,0.16679803,69149.0,69148.0,0.00982706]
[1722092361136,0.16679803,69149.0,69148.0,0.15444406]
[1722092361369,0.16679803,69149.0,69137.0,0.0015542]
[1722092361370,0.06,69147.0,69137.0,0.0015542]
[1722092361629,0.06,69145.0,69138.0,0.04733542]
[1722092361861,0.36437079,69147.0,69139.0,0.0015542]
[1722092361862,0.21976379,69140.0,69139.0,0.0015542]
[1722092362101,0.36186379,69140.0,69139.0,0.0015542]
[1722092362326,0.06,69139.0,69132.0,0.289298]
[1722092362564,0.204636,69139.0,69135.0,0.144642]
[1722092363000,0.204636,69139.0,69136.0,0.00983249]
[1722092363224,0.06,69139.0,69136.0,0.00983249]
[1722092363451,0.349275,69139.0,69136.0,0.00983249]
[1722092363681,0.06,69138.0,69133.0,0.289295]
[1722092363902,0.06,69138.0,69137.0,0.00983088]
[1722092364136,0.06,69138.0,69134.0,0.02989035]
[1722092364354,0.06,69138.0,69137.0,0.15447088]
[1722092364577,0.06,69138.0,69137.0,0.7232]
[1722092364805,0.08270117,69138.0,69137.0,1.05532668]
[1722092365270,0.02270117,69138.0,69137.0,1.05532668]
[1722092365767,0.02270117,69138.0,69137.0,1.06032668]
[1722092366001,0.06,69142.0,69141.0,0.433894]
[1722092366248,0.06,69142.0,69141.0,0.75304735]
[1722092366497,0.06,69142.0,69141.0,0.76287178]
[1722092367180,0.06,69142.0,69141.0,0.44371843]
[1722092367652,0.06,69142.0,69141.0,0.73298143]
[1722092368343,0.06084,69142.0,69141.0,0.73298143]
[1722092368558,0.06084,69142.0,69141.0,0.73798143]
[1722092369016,0.00084,69142.0,69141.0,0.73798143]
[1722092369239,0.01853946,69142.0,69141.0,0.73798143]
[1722092369472,0.0629,69145.0,69144.0,0.723127]
[1722092369914,0.0629,69145.0,69144.0,0.4436956]
[1722092370664,0.0629,69145.0,69144.0,0.7329466]
[1722092372316,0.0649,69149.0,69148.0,0.723085]
[1722092372751,0.0649,69149.0,69148.0,0.73285972]
[1722092373215,0.0649,69149.0,69148.0,0.44362572]
[1722092373453,0.1401,69149.0,69148.0,0.00977472]
[1722092373905,0.1401,69149.0,69146.0,0.14462]
[1722092374143,0.1401,69149.0,69148.0,0.00977183]
[1722092374361,0.1401,69149.0,69147.0,0.15439244]
[1722092374567,0.1401,69149.0,69148.0,0.00977183]
[1722092374739,0.573945,69149.0,69148.0,0.00977183]
[1722092374943,0.863175,69149.0,69148.0,0.00977183]
[1722092375240,0.0752,69146.0,69143.0,0.144627]
[1722092375484,0.0629,69145.0,69143.0,0.144627]
[1722092375693,0.0629,69145.0,69138.0,0.289274]
[1722092375845,0.0629,69145.0,69139.0,0.289272]
[1722092376053,0.144625,69144.0,69142.0,0.00080683]
[1722092376259,0.207524,69145.0,69142.0,0.00080683]
[1722092376457,0.207524,69145.0,69143.0,0.00977989]
[1722092376663,0.207524,69145.0,69141.0,0.144631]
[1722092376942,0.207524,69145.0,69144.0,0.00977828]
[1722092377153,0.207524,69145.0,69141.0,0.144631]
[1722092377337,0.0629,69145.0,69144.0,0.00977828]
[1722092377536,0.0629,69145.0,69141.0,0.144631]
[1722092377737,0.0629,69145.0,69144.0,0.00977828]
[1722092377973,0.0629,69145.0,69143.0,0.001]
[1722092378173,0.207523,69145.0,69144.0,0.00977828]
[1722092378572,0.207523,69145.0,69141.0,0.144631]
[1722092378751,0.207523,69145.0,69144.0,0.00977828]
[1722092379111,0.207523,69145.0,69141.0,0.144631]
[1722092379343,0.207523,69145.0,69142.0,0.144629]
[1722092379344,0.0629,69145.0,69142.0,0.144629]
[1722092379543,0.207523,69145.0,69142.0,0.0097815]
[1722092380285,0.0629,69145.0,69142.0,0.1544105]
[1722092380497,0.207524,69145.0,69142.0,0.0097815]
[1722092380841,0.207524,69145.0,69143.0,0.04436785]
[1722092381035,0.207524,69145.0,69143.0,0.05414774]
[1722092381648,0.433876,69144.0,69143.0,0.00977989]
[1722092381879,0.0629,69142.0,69138.0,0.00106232]
[1722092382051,0.144635,69140.0,69136.0,0.62610843]
[1722092382278,0.0629,69142.0,69136.0,0.62610843]
[1722092382279,0.0629,69142.0,69140.0,0.0015542]
[1722092382683,0.144632,69141.0,69137.0,0.14464]
[1722092382942,0.0629,69142.0,69140.0,0.144632]
[1722092383298,0.0629,69142.0,69141.0,0.00083081]
[1722092383500,0.0629,69142.0,69140.0,0.144632]
[1722092383904,0.20753,69142.0,69139.0,0.144636]
[1722092384103,0.0629,69142.0,69139.0,0.144636]
[1722092384487,0.0629,69142.0,69140.0,0.144633]
[1722092384738,0.0629,69142.0,69139.0,0.144635]
[1722092384943,0.08559948,69142.0,69140.0,0.00303488]
[1722092385113,0.08559948,69142.0,69140.0,0.002]
[1722092385557,0.23022848,69142.0,69141.0,0.00107584]
[1722092385762,0.88394648,69142.0,69141.0,0.00107584]
[1722092386099,0.861257,69141.0,69140.0,0.002]
[1722092386305,0.209244,69135.0,69133.0,0.00153436]
[1722092386493,0.0646,69135.0,69133.0,0.00153436]
[1722092386675,0.0646,69135.0,69133.0,0.144648]
[1722092386994,0.0646,69135.0,69132.0,0.00954927]
[1722092387118,0.0646,69135.0,69133.0,0.144646]
[1722092387318,0.0646,69135.0,69134.0,0.144646]
[1722092387974,0.0646,69135.0,69133.0,0.144646]
[1722092388567,0.0646,69135.0,69132.0,0.289301]
[1722092388568,0.0646,69135.0,69134.0,0.144646]
[1722092389183,0.0646,69135.0,69134.0,0.433939]
[1722092389640,0.08730129,69135.0,69134.0,0.433939]
[1722092389816,0.08730129,69135.0,69134.0,0.150646]
[1722092390363,0.08730129,69135.0,69134.0,0.006]
[1722092390561,0.08730129,69135.0,69134.0,0.014]
[1722092391447,0.08730129,69135.0,69134.0,0.02381695]
[1722092392431,0.23194529,69135.0,69134.0,0.02537115]
[1722092392630,0.08730129,69135.0,69134.0,0.02381695]
[1722092393223,0.16940129,69135.0,69134.0,0.02381695]
[1722092393636,1.18191229,69135.0,69134.0,0.02381695]
[1722092393836,0.89262329,69135.0,69134.0,0.014]
[1722092395599,1.18191229,69135.0,69134.0,0.014]
[1722092397906,1.159211,69135.0,69134.0,0.014]
[1722092398930,0.869922,69135.0,69134.0,0.014]
[1722092400290,0.868852,69135.0,69134.0,0.014]
[1722092400619,1.158141,69135.0,69134.0,0.014924]
[1722092400818,1.54743,69135.0,69134.0,0.014924]
[1722092401228,1.54743,69135.0,69134.0,0.008924]
[1722092401444,1.57013381,69135.0,69134.0,0.009924]
[1722092401849,1.258141,69135.0,69134.0,0.009924]
[1722092402060,0.24563,69135.0,69134.0,0.009924]
[1722092402264,0.14563,69135.0,69134.0,0.009924]
[1722092402468,0.06353,69135.0,69134.0,0.009924]
[1722092402678,0.06353,69135.0,69134.0,0.046312]
[1722092402844,0.06353,69135.0,69134.0,0.045312]
[1722092403007,0.209174,69135.0,69134.0,0.000924]
[1722092403424,0.208174,69135.0,69134.0,0.000924]
[1722092403645,0.497463,69135.0,69134.0,0.000924]
[1722092403868,0.497463,69135.0,69134.0,0.006924]
[1722092404070,0.579563,69135.0,69134.0,0.004924]
[1722092404909,0.14563,69135.0,69134.0,0.005924]
[1722092405082,0.06353,69135.0,69134.0,0.1800934]
[1722092405281,0.144634,69140.0,69136.0,0.144641]
[1722092405518,0.144634,69140.0,69134.0,0.0354474]
[1722092405897,0.00084,69142.0,69141.0,0.433894]
[1722092406095,0.00084,69142.0,69139.0,0.144635]
[1722092406206,0.00084,69142.0,69139.0,0.289271]
[1722092406409,0.00084,69142.0,69141.0,0.144631]
[1722092407103,0.00084,69142.0,69140.0,0.144633]
[1722092407309,0.00084,69142.0,69138.0,0.144636]
[1722092407533,0.00084,69142.0,69139.0,0.005]
[1722092408089,0.14547,69142.0,69137.0,0.144639]
[1722092408230,0.00084,69142.0,69135.0,0.289287]
[1722092408453,0.14547,69142.0,69136.0,0.00126226]
[1722092408637,0.07512979,69137.0,69134.0,0.000924]
[1722092408968,0.513033,69135.0,69134.0,0.000924]
[1722092409818,0.802322,69135.0,69134.0,0.000924]
[1722092409971,0.513033,69135.0,69134.0,0.000924]
[1722092410179,0.576433,69135.0,69134.0,0.000924]
[1722092410379,0.865722,69135.0,69134.0,0.003924]
[1722092412421,1.155011,69135.0,69134.0,0.003924]
[1722092412622,1.17771499,69135.0,69134.0,0.003924]
[1722092412829,1.17771499,69135.0,69134.0,0.000924]
[1722092413226,1.17871499,69135.0,69134.0,0.000924]
[1722092413639,1.155011,69135.0,69134.0,0.000924]
[1722092413837,0.866722,69135.0,69134.0,0.000924]
[1722092416930,0.288144,69135.0,69134.0,0.000924]
[1722092417128,0.60013691,69135.0,69134.0,0.000924]
[1722092417334,0.209044,69135.0,69134.0,0.000924]
[1722092417518,0.209044,69135.0,69134.0,0.4494208]
[1722092417519,0.001,69135.0,69134.0,0.4494208]
[1722092417753,0.144635,69140.0,69135.0,0.144643]
[1722092418024,0.1,69139.0,69136.0,0.144641]
[1722092418244,0.1,69139.0,69136.0,0.05405169]
[1722092418405,0.1,69139.0,69137.0,0.0831]
[1722092418832,0.1,69139.0,69137.0,0.00827937]
[1722092419192,0.00084,69142.0,69137.0,0.00827937]
[1722092419426,0.289264,69141.0,69137.0,0.00827937]
[1722092419856,0.144636,69139.0,69134.0,0.149568]
[1722092420070,0.144636,69139.0,69138.0,0.00827776]
[1722092420271,0.144636,69139.0,69134.0,0.14557]
[1722092420476,0.145636,69139.0,69138.0,0.00827776]
[1722092420716,0.1683378,69139.0,69136.0,0.0015542]
[1722092420923,0.1673378,69139.0,69138.0,0.00827776]
[1722092421143,0.0237018,69139.0,69138.0,0.01554]
[1722092421348,0.0237018,69139.0,69138.0,0.74700776]
[1722092421653,0.0237018,69139.0,69138.0,0.83010776]
[1722092421654,0.0227018,69139.0,69138.0,0.83010776]
[1722092421858,0.00084,69142.0,69141.0,0.723157]
[1722092421992,0.00084,69142.0,69141.0,1.07692]
[1722092422201,0.00084,69142.0,69141.0,1.08514544]
[1722092423249,0.00084,69142.0,69141.0,1.18124544]
[1722092424076,0.00084,69142.0,69141.0,1.62276801]
[1722092424246,0.00084,69142.0,69141.0,1.46723248]
[1722092424455,0.00084,69142.0,69141.0,1.46723126]
[1722092424995,0.02353809,69142.0,69141.0,1.46723126]
[1722092425221,0.02353809,69142.0,69141.0,1.30397169]
[1722092425391,0.00084,69142.0,69141.0,1.30397169]
[1722092425589,0.00084,69142.0,69141.0,1.31797169]
[1722092425807,0.00084,69142.0,69141.0,1.33197169]
[1722092426010,0.00084,69142.0,69141.0,1.30397169]
[1722092426553,0.00084,69142.0,69141.0,1.31797169]
[1722092426765,0.00084,69142.0,69141.0,1.32763443]
[1722092427882,0.00084,69142.0,69141.0,1.34163299]
[1722092428057,0.02353716,69142.0,69141.0,1.32763299]
[1722092428283,0.02353716,69142.0,69141.0,1.31363299]
[1722092428487,0.02353716,69142.0,69141.0,1.32763299]
[1722092428828,0.00084,69142.0,69141.0,1.31363299]
[1722092429140,0.00084,69142.0,69141.0,1.34163299]
[1722092429548,0.00084,69142.0,69141.0,1.49189256]
[1722092429748,0.00084,69142.0,69141.0,1.47789256]
[1722092430168,0.00084,69142.0,69141.0,1.35770775]
[1722092430384,0.00084,69142.0,69141.0,1.37170775]
[1722092430570,0.00084,69142.0,69141.0,0.47978218]
[1722092430803,0.00084,69142.0,69141.0,0.47011944]
[1722092431924,0.02353765,69142.0,69141.0,0.47011944]
[1722092432375,0.23096665,69142.0,69141.0,0.03622544]
[1722092432595,0.08633765,69142.0,69141.0,0.03622544]
[1722092433047,0.08633765,69142.0,69141.0,0.08323978]
[1722092433272,0.08633765,69142.0,69141.0,0.22787078]
[1722092433273,0.06364,69142.0,69141.0,0.22787078]
[1722092433487,0.06364,69142.0,69141.0,0.21387078]
[1722092433721,0.00084,69142.0,69141.0,0.22187078]
[1722092433898,0.00084,69142.0,69141.0,0.51113378]
[1722092434302,0.00084,69142.0,69141.0,0.80039678]
[1722092434718,0.00084,69142.0,69141.0,0.78639678]
[1722092435127,0.00084,69142.0,69141.0,0.79739678]
[1722092435330,0.00084,69142.0,69141.0,0.78939678]
[1722092435527,0.00084,69142.0,69141.0,0.78639678]
[1722092435972,0.00084,69142.0,69141.0,0.79839678]
[1722092436145,0.00084,69142.0,69141.0,0.79039678]
[1722092436345,0.02353837,69142.0,69141.0,0.79039678]
[1722092436545,0.02353837,69142.0,69141.0,0.79939678]
[1722092436748,0.00084,69142.0,69141.0,0.17385644]
[1722092436948,0.06364,69142.0,69141.0,0.02922544]
[1722092437170,0.06364,69142.0,69141.0,0.17385644]
[1722092437383,0.06364,69142.0,69141.0,0.02922544]
[1722092438549,0.208269,69142.0,69141.0,0.02922544]
[1722092438757,0.865387,69142.0,69141.0,0.02922544]
[1722092438960,0.576128,69142.0,69141.0,0.021]
[1722092439327,0.286869,69142.0,69141.0,0.021]
[1722092439927,0.3095688,69142.0,69141.0,0.021]
[1722092440126,0.0863398,69142.0,69141.0,0.0375642]
[1722092440332,0.0235398,69142.0,69141.0,0.4714582]
[1722092440574,0.00084,69142.0,69141.0,0.47834427]
[1722092441176,0.00084,69142.0,69141.0,0.76760727]
[1722092442604,0.00084,69142.0,69141.0,1.05687027]
[1722092443029,0.00084,69142.0,69141.0,1.19056564]
[1722092443255,0.00084,69142.0,69141.0,1.375349]
[1722092443643,0.00084,69142.0,69141.0,1.664612]
[1722092443858,0.00084,69142.0,69141.0,1.655612]
[1722092444196,0.00084,69142.0,69141.0,1.669612]
[1722092444580,0.00084,69142.0,69141.0,1.66961006]
[1722092444999,0.00084,69142.0,69141.0,1.62218172]
[1722092445193,0.00084,69142.0,69141.0,1.74236326]
[1722092445637,0.00084,69142.0,69141.0,1.75636326]
[1722092446098,0.00084,69142.0,69141.0,1.31684069]
[1722092447673,0.00084,69142.0,69141.0,1.46710026]
[1722092447877,0.00084,69142.0,69141.0,1.46710434]
[1722092448143,0.02353708,69142.0,69141.0,1.46710434]
[1722092448369,0.02353708,69142.0,69141.0,1.17724477]
[1722092448710,0.00084,69142.0,69141.0,1.17724477]
[1722092449117,0.00084,69142.0,69141.0,1.16324477]
[1722092449319,0.00084,69142.0,69141.0,1.31350434]
[1722092450073,0.00084,69142.0,69141.0,1.29950434]
[1722092450483,0.00084,69142.0,69141.0,1.30750434]
[1722092450687,0.00084,69142.0,69141.0,1.30250434]
[1722092450922,0.00084,69142.0,69141.0,1.29450434]
[1722092451682,0.02353712,69142.0,69141.0,1.29450434]
[1722092452312,0.00084,69142.0,69141.0,1.30850434]
[1722092452924,0.00084,69142.0,69141.0,1.32250434]
[1722092453094,0.00084,69142.0,69141.0,1.20231872]
[1722092454098,0.00084,69142.0,69141.0,1.18831872]
[1722092454704,0.00084,69142.0,69141.0,1.20231872]
[1722092456694,0.02353704,69142.0,69141.0,1.20231872]
[1722092456897,0.00084,69142.0,69141.0,1.20231872]
[1722092458673,0.00084,69142.0,69141.0,1.05205915]
[1722092458877,0.00084,69142.0,69141.0,1.17224505]
[1722092459071,0.00084,69142.0,69141.0,1.17224602]
[1722092459723,0.00084,69142.0,69141.0,1.17224786]
[1722092459926,0.00084,69142.0,69141.0,0.88298486]
[1722092460297,0.02353804,69142.0,69141.0,0.88298486]
[1722092460498,0.00084,69142.0,69141.0,0.88298486]
[1722092463296,0.00084,69142.0,69141.0,0.87323178]
[1722092463905,0.02353817,69142.0,69141.0,0.87323178]
[1722092464124,0.01142836,69144.0,69143.0,0.433882]
[1722092464323,0.01142836,69144.0,69143.0,0.55407071]
[1722092464501,0.01142836,69144.0,69143.0,0.12703489]
[1722092464703,0.15605336,69144.0,69143.0,0.00684618]
[1722092465124,0.01142836,69144.0,69141.0,0.028924]
[1722092465303,0.01142836,69144.0,69143.0,0.144627]
[1722092465504,0.002,69149.0,69145.0,0.289247]
[1722092465705,0.002,69149.0,69148.0,0.723085]
[1722092465938,0.002,69149.0,69148.0,0.433851]
[1722092467218,0.0658,69149.0,69148.0,0.433851]
[1722092467435,0.0658,69149.0,69148.0,0.144617]
[1722092468275,0.0658,69149.0,69148.0,0.46493815]
[1722092468925,0.0658,69149.0,69148.0,0.75717215]
[1722092469124,0.0658,69149.0,69148.0,0.46893815]
[1722092469538,0.0658,69149.0,69148.0,0.437851]
[1722092470012,0.0658,69149.0,69148.0,0.148617]
[1722092470593,0.0658,69149.0,69148.0,0.437851]
[1722092470792,0.0658,69149.0,69148.0,0.727085]
[1722092471595,0.0658,69149.0,69148.0,0.437851]
[1722092472152,0.002,69149.0,69148.0,0.727085]
[1722092472359,0.002,69149.0,69148.0,0.804185]